{"text_format":"1","workbook":"xlsx","n_sheets":4,"sheets":["様式第1号","様式第1号（別紙1）","様式第1号（別紙２）","プルダウン"],"not_rendered":{"charts":0,"images":0,"macros":1,"external_links":0,"defined_names":5,"comments":0,"pivot_tables":0},"unopened":[],"bounds":{"document_bytes":16777216,"sheet_cells":100000,"rows_first":2000,"rows_last":500,"rows_between":2000,"halvings":0,"cell_chars":16384,"cell_head_chars":4096},"cells_cut":0,"cells_raw":0,"read":"whole","date_system":"1900"}

{"sheet":"様式第1号","index":0,"n_rows":38,"n_cols":15,"rows_kept":38,"cut":false,"hidden":false,"merged":[[3,11,3,14],[6,7,6,9],[6,11,6,13],[7,7,7,13],[8,5,8,13],[5,5,5,6],[5,7,5,9],[5,11,5,13],[6,2,7,4],[8,2,8,4],[9,2,9,4],[6,5,6,6],[7,5,7,6],[9,5,9,8],[9,10,9,13],[13,18,13,19],[35,7,35,10],[13,0,14,14],[15,0,15,14],[11,0,11,14],[17,1,17,4],[17,6,17,10]]}
[]
[null,null,null,null,null,null,null,null,null,null,null,null,"（令和８年度申請用）"]
["様式第1号（第8条関係）"]
[null,null,null,null,null,null,null,null,null,null,null,"年　　月　　日"]
[]
["東京都知事殿",null,null,null,null,"郵便番号",null,null,null,null,"―"]
[null,null,"事業主の所在地",null,null,"都道\n府県",null,null,null,null,"区市\n町村"]
[null,null,null,null,null,"丁目・番地・号・建物名"]
[null,null,"事業主の名称",null,null,null,null,null,null,null,null,null,null,null,"印"]
[null,null,"代表者役職",null,null,null,null,null,null,"代表者氏名"]
[]
["東京都若者世代職場定着促進助成金\n事業実施計画書兼交付申請書"]
[]
["　東京都若者世代職場定着促進助成金（以下「助成金」という。）について、助成金交付要綱第8条に基づき、下記のとおり申請します。"]
[]
["記"]
["1　事業実施予定期間（支援期間）"]
[null,null,null,null,null,"から",{"$f":"IFERROR(VLOOKUP(B18,プルダウン!A:W,2,FALSE),\"\")","v":""},null,null,null,null,"まで"]
["2　事業実施計画"]
[null,"(1)対象労働者数",null,null,null,null,null,null,null,null,null,{"$f":"IF(プルダウン!H6>1,\"無効な入力です\",\"\")","v":""}]
[null,"(2)退職金制度整備加算申請"]
[]
[null,null,null,null,null,null,null,null,null,null,null,null,null,null,{"$f":"IF(プルダウン!P6>100000,\"無効な入力です\",\"\")","v":""}]
[null,"(3)結婚・育児支援制度整備加算申請"]
[]
[]
[null,"(4)介護支援制度整備加算申請"]
[]
[]
[null,"(5)賃上げ加算申請"]
[]
[null,"   賃上げを実施",null,null,null,null,null,null,null,null,null,{"$f":"IF(プルダウン!M6>1,\"無効な入力です\",\"\")","v":""}]
[]
[]
["3 助成金交付申請額"]
[null,null,null,null,null,null,"金",{"$f":"プルダウン!T6","v":0},null,null,null,"円"]
[]
[null,null,null,null,null,null,null,{"$f":"IF(プルダウン!N6>プルダウン!I6,\"無効な入力です\",\"\")","v":""}]

{"sheet":"様式第1号（別紙1）","index":1,"n_rows":42,"n_cols":12,"rows_kept":42,"cut":false,"hidden":false,"merged":[[35,1,35,2],[35,3,35,6],[35,8,35,9],[36,0,37,0],[36,1,37,2],[36,3,37,6],[36,7,37,7],[36,8,37,9],[38,0,40,0],[38,1,40,2],[38,4,38,8],[38,10,38,11],[39,3,39,6],[39,7,39,11],[40,3,40,6],[40,7,40,11],[24,3,24,11],[25,3,25,11],[26,4,26,5],[26,7,26,9],[36,10,37,11],[29,0,34,0],[29,1,34,2],[29,3,29,11],[32,4,32,5],[32,7,32,9],[33,3,34,3],[33,5,33,7],[33,9,33,11],[34,4,34,5],[34,6,34,11],[19,0,28,0],[19,1,28,2],[19,3,19,11],[20,3,20,11],[21,4,21,5],[21,7,21,9],[22,3,23,3],[22,5,22,7],[22,9,22,11],[23,4,23,5],[23,6,23,11],[27,3,28,3],[27,5,27,7],[27,9,27,11],[28,4,28,5],[28,6,28,11],[14,9,16,9],[15,2,15,3],[15,4,15,5],[16,2,16,3],[16,4,16,5],[8,4,8,5],[8,6,8,8],[14,1,16,1],[14,2,14,3],[14,4,14,5],[14,6,16,8],[10,1,10,3],[10,4,10,5],[10,6,10,8],[8,1,8,3],[12,1,12,3],[12,4,12,5],[12,6,12,8],[3,1,3,3],[3,4,3,5],[3,6,3,9],[4,1,6,1],[4,2,4,3],[4,4,4,5],[4,6,6,8],[4,9,6,9],[5,2,5,3],[5,4,5,5],[6,2,6,3],[6,4,6,5]]}
["様式第1号（第8条関係）別紙１"]
[null,null,null,null,null,null,null,null,null,"（令和８年度申請用）"]
["４ 助成金交付申請額内訳"]
[null,null,null,null,null,null,"交付申請額"]
[null,"対象労働者数","1人",null,"２０万円",null,{"$f":"プルダウン!O6","v":0},null,null,"円"]
[null,null,"2人",null,"４０万円"]
[null,null,"3人以上",null,"６０万円"]
[]
[null,"退職金整備加算",null,null,"１０万円",null,{"$f":"プルダウン!P6","v":0},null,null,"円"]
[]
[null,"結婚・育児支援制度整備加算",null,null,"１０万円",null,{"$f":"プルダウン!Q6","v":0},null,null,"円"]
[]
[null,"介護支援制度整備加算",null,null,"１０万円",null,{"$f":"プルダウン!R6","v":0},null,null,"円"]
[]
[null,"賃上げ加算","1人",null,"１２万円",null,{"$f":"プルダウン!S6","v":0},null,null,"円"]
[null,null,"2人",null,"２４万円"]
[null,null,"3人以上",null,"３６万円"]
[]
["５　事業主の概要"]
[null,"①雇用保険適用事業所の所在地",null,"㋐東京都の就職支援事業を利用した事業主\n対象労働者が採用時に在籍した雇用保険適用事業所の所在地"]
[]
[null,null,null,"郵便番号",null,null,"-"]
[null,null,null,"住所","都道\n府県",null,null,null,"区市\n町村"]
[null,null,null,null,"番地・号\n建物名"]
[null,null,null,"㋑対象労働者が現在在籍している雇用保険適用事業所"]
[]
[null,null,null,"郵便番号",null,null,"-"]
[null,null,null,"住所","都道\n府県",null,null,null,"区市\n町村"]
[null,null,null,null,"番地・号\n建物名"]
[null,"②書類送付先\n※代理人不可"]
[]
[]
[null,null,null,"郵便番号",null,null,"-"]
[null,null,null,"住所","都道\n府県",null,null,null,"区市\n町村"]
[null,null,null,null,"番地・号\n建物名"]
[null,"③今年度、既に申請した人数（同一雇用保険適用事業所内）",null,null,null,null,null,"④","常用労働者数",null,null,"人"]
[null,"④業種※1",null,null,null,null,null,"⑥","事業内容"]
[]
[null,"⑤連絡先\n※代理人不可",null,"所属",null,null,null,null,null,"氏名"]
[null,null,null,"電話番号（所属）※必須"]
[null,null,null,"電話番号（携帯）※任意"]
["※1 日本標準産業分類（大分類）に基づき、アルファベットと業種名を記入してください。"]

{"sheet":"様式第1号（別紙２）","index":2,"n_rows":45,"n_cols":23,"rows_kept":45,"cut":false,"hidden":false,"merged":[[28,1,28,22],[29,1,29,4],[29,5,29,6],[29,7,29,12],[36,1,37,4],[15,1,15,4],[15,5,15,6],[15,7,15,12],[15,13,15,16],[17,1,17,4],[17,5,17,6],[17,7,17,12],[21,20,21,21],[22,1,22,4],[23,12,24,12],[24,13,24,14],[17,13,17,16],[23,11,24,11],[34,1,34,4],[34,5,34,12],[34,13,34,19],[34,20,34,21],[35,1,35,4],[35,6,35,12],[3,1,3,4],[7,1,7,4],[7,5,7,12],[7,13,7,19],[7,20,7,21],[9,10,10,10],[9,11,10,11],[9,12,10,12],[9,13,9,14],[9,15,9,16],[10,13,10,14],[10,15,10,16],[8,1,8,4],[8,6,8,12],[8,14,8,22],[9,1,10,4],[9,5,10,6],[9,7,10,7],[9,8,10,8],[9,9,10,9],[14,1,14,22],[23,13,23,14],[23,15,23,16],[26,1,26,4],[26,7,26,10],[26,13,26,16],[26,19,26,22],[12,1,12,4],[22,6,22,12],[22,14,22,22],[23,1,24,4],[23,5,24,6],[23,7,24,7],[23,8,24,8],[23,9,24,9],[12,7,12,10],[12,13,12,16],[12,19,12,22],[16,1,16,22],[24,15,24,16],[21,1,21,4],[21,5,21,12],[21,13,21,19],[23,10,24,10],[36,5,37,6],[36,7,37,7],[36,8,37,8],[36,9,37,9],[36,10,37,10],[36,11,37,11],[35,14,35,22],[29,13,29,16],[30,1,30,22],[31,1,31,4],[31,5,31,6],[31,7,31,12],[31,13,31,16],[36,12,37,12],[36,13,36,14],[36,15,36,16],[37,13,37,14],[37,15,37,16],[43,1,43,22],[44,1,44,4],[44,5,44,6],[44,7,44,12],[44,13,44,16],[45,1,57,22],[39,19,39,22],[41,1,41,22],[42,1,42,4],[42,5,42,6],[42,7,42,12],[42,13,42,16],[39,1,39,4],[39,7,39,10],[39,13,39,16]]}
["様式第1号（第8条関係）別紙2"]
[null,null,null,null,null,null,null,null,null,null,null,null,null,null,null,null,null,null,null,null,null,"（令和８年度申請用）"]
["６　雇用保険適用事業所番号"]
[null,"雇用保険適用事業所番号",null,null,null,null,null,null,null,"-",null,null,null,null,null,null,"-"]
[]
["７　対象労働者ごとの情報"]
[null,"（１）"]
[null,"氏名",null,null,null,null,null,null,null,null,null,null,null,"採用日（非正規雇用労働者として採用\nされた場合はその採用日）時点の満年齢",null,null,null,null,null,null,null,null,"歳"]
[null,"雇用区分",null,null,null,null,"　　非正規雇用を経ずに、正規雇用労働者として採用",null,null,null,null,null,null,null,"　　非正規雇用労働者として採用後、６か月未満の日に正規転換を行った。"]
[null,"採用日\n及び\n正規転換日",null,null,null,"（正規採用）",null,null,"年",null,"月",null,"日","（非正規採用）",null,null,null,"年",null,"月",null,"日"]
[null,null,null,null,null,null,null,null,null,null,null,null,null,"(正規転換）",null,null,null,"年",null,"月",null,"日"]
[]
[null,"利用した都支援事業",null,null,null,null,null,"キャリアチェンジ再就職支援事業",null,null,null,null,null,"ものづくり産業\n人材確保支援事業",null,null,null,null,null,"成長産業人材雇用支援事業"]
[]
[null,"採用日時点"]
[null,"所属事務所所在地\n（区市町村まで）",null,null,null,"東京都",null,null,null,null,null,null,null,"派遣（出向）の有無"]
[null,"申請日時点"]
[null,"所属事務所所在地\n（区市町村まで）",null,null,null,"東京都",null,null,null,null,null,null,null,"派遣（出向）の有無"]
[]
[]
[null,"（２）"]
[null,"氏名",null,null,null,null,null,null,null,null,null,null,null,"採用日（非正規雇用労働者として採用\nされた場合はその採用日）時点の満年齢",null,null,null,null,null,null,null,null,"歳"]
[null,"雇用区分",null,null,null,null,"　　非正規雇用を経ずに、正規雇用労働者として採用",null,null,null,null,null,null,null,"　　非正規雇用労働者として採用後、６か月未満の日に正規転換を行った。"]
[null,"採用日\n及び\n正規転換日",null,null,null,"（正規採用）",null,null,"年",null,"月",null,"日","（非正規採用）",null,null,null,"年",null,"月",null,"日"]
[null,null,null,null,null,null,null,null,null,null,null,null,null,"(正規転換）",null,null,null,"年",null,"月",null,"日"]
[]
[null,"利用した都支援事業",null,null,null,null,null,"キャリアチェンジ再就職支援事業",null,null,null,null,null,"ものづくり産業\n人材確保支援事業",null,null,null,null,null,"成長産業人材雇用支援事業"]
[]
[null,"採用日時点"]
[null,"所属事務所所在地\n（区市町村まで）",null,null,null,"東京都",null,null,null,null,null,null,null,"派遣（出向）の有無"]
[null,"申請日時点"]
[null,"所属事務所所在地\n（区市町村まで）",null,null,null,"東京都",null,null,null,null,null,null,null,"派遣（出向）の有無"]
[]
[null,"（３）"]
[null,"氏名",null,null,null,null,null,null,null,null,null,null,null,"採用日（非正規雇用労働者として採用\nされた場合はその採用日）時点の満年齢",null,null,null,null,null,null,null,null,"歳"]
[null,"雇用区分",null,null,null,null,"　　非正規雇用を経ずに、正規雇用労働者として採用",null,null,null,null,null,null,null,"　　非正規雇用労働者として採用後、６か月未満の日に正規転換を行った。"]
[null,"採用日\n及び\n正規転換日",null,null,null,"（正規採用）",null,null,"年",null,"月",null,"日","（非正規採用）",null,null,null,"年",null,"月",null,"日"]
[null,null,null,null,null,null,null,null,null,null,null,null,null,"(正規転換）",null,null,null,"年",null,"月",null,"日"]
[]
[null,"利用した都支援事業",null,null,null,null,null,"キャリアチェンジ再就職支援事業",null,null,null,null,null,"ものづくり産業\n人材確保支援事業",null,null,null,null,null,"成長産業人材雇用支援事業"]
[]
[null,"採用日時点"]
[null,"所属事務所所在地\n（区市町村まで）",null,null,null,"東京都",null,null,null,null,null,null,null,"派遣（出向）の有無"]
[null,"申請日時点"]
[null,"所属事務所所在地\n（区市町村まで）",null,null,null,"東京都",null,null,null,null,null,null,null,"派遣（出向）の有無"]

{"sheet":"プルダウン","index":3,"n_rows":68,"n_cols":23,"rows_kept":68,"cut":false,"hidden":true,"merged":[]}
["取組（開始）","取組（終了）","金額（対象者分）","金額（退職金）","金額","市区町村","転換年","１～3人",null,"退職金","結婚・育児","介護","賃上げ",null,"労働者分金額","退職金分金額","結婚・育児","介護","賃上げ","合計",null,null,"アルファベット業種"]
[]
["2026-07-01","2026-09-30",200000,100000,200000,"千代田区","令和4",false,{"$f":"IF(H3=TRUE,1)","v":false},false,false,false,false,{"$f":"IF(M3=TRUE,1)","v":false},{"$f":"IF(H3=TRUE,200000,0)","v":0},{"$f":"IF(J3=TRUE,100000,0)","v":0},{"$f":"IF(K3=TRUE,100000,0)","v":0},{"$f":"IF(L3=TRUE,100000,0)","v":0},{"$f":"IF(M3=TRUE,120000,0)","v":0},null,"Ａ","農業，林業",{"$f":"U3&\"  \"&V3","v":"Ａ  農業，林業"}]
["2026-08-01","2026-10-31",400000,null,300000,"中央区","令和5",false,{"$f":"IF(H4=TRUE,2)","v":false},false,null,null,false,{"$f":"IF(M4=TRUE,2)","v":false},{"$f":"IF(H4=TRUE,400000,0)","v":0},{"$f":"IF(J4=TRUE,100000,0)","v":0},null,null,{"$f":"IF(M4=TRUE,240000,0)","v":0},null,"Ｂ","漁業",{"$f":"U4&\"  \"&V4","v":"Ｂ  漁業"}]
["2026-09-01","2026-11-30",600000,null,400000,"港区","令和6",false,{"$f":"IF(H5=TRUE,3)","v":false},null,null,null,false,{"$f":"IF(M5=TRUE,3)","v":false},{"$f":"IF(H5=TRUE,600000,0)","v":0},null,null,null,{"$f":"IF(M5=TRUE,360000,0)","v":0},null,"Ｃ","鉱業，採石業，砂利採取業","Ｃ  鉱業，採石業，砂利採取業"]
["2026-10-01","2026-12-31",null,null,500000,"新宿区",null,{"$f":"COUNTIF(H3:H5,TRUE)","v":0},{"$f":"SUM(I3:I5)","v":0},{"$f":"COUNTIF(J3:J5,TRUE)","v":0},{"$f":"COUNTIF(K3:K5,TRUE)","v":0},{"$f":"COUNTIF(L3:L5,TRUE)","v":0},{"$f":"COUNTIF(M3:M5,TRUE)","v":0},{"$f":"SUM(N3:N5)","v":0},0,0,0,0,0,{"$f":"SUM(O6:S6)","v":0},"Ｄ","建設業","Ｄ  建設業"]
["2026-11-01","2027-01-31",null,null,600000,"文京区",null,null,null,null,null,null,null,null,null,null,null,null,null,null,"Ｅ","製造業","Ｅ  製造業"]
["2026-12-01","2027-02-28",{"$f":"C3/200000","v":1},null,700000,"台東区",null,null,null,null,null,null,null,null,null,null,null,null,{"$f":"S3/120000","v":0},null,"Ｆ","電気・ガス・熱供給・水道業","Ｆ  電気・ガス・熱供給・水道業"]
[null,null,{"$f":"C4/400000*2","v":2},null,null,"墨田区",null,null,null,null,null,null,null,null,null,null,null,null,{"$f":"S4/240000*2","v":0},null,"Ｇ","情報通信業","Ｇ  情報通信業"]
[null,null,{"$f":"C5/600000*3","v":3},null,null,"江東区",null,null,null,null,null,null,null,null,null,null,null,null,{"$f":"S5/360000*3","v":0},null,"Ｈ","運輸業，郵便業","Ｈ  運輸業，郵便業"]
[null,null,{"$f":"SUM(C8:C10)","v":6},null,null,"品川区",null,null,null,null,null,null,null,null,null,null,null,null,{"$f":"SUM(S8:S10)","v":0},null,"Ｉ","卸売業，小売業","Ｉ  卸売業，小売業"]
[null,null,null,null,null,"目黒区",null,null,null,null,null,null,null,null,null,null,null,null,null,null,"Ｊ","金融業，保険業","Ｊ  金融業，保険業"]
[null,null,null,null,null,"大田区",null,null,null,null,null,null,null,null,null,null,null,null,null,null,"Ｋ","不動産業，物品賃貸業","Ｋ  不動産業，物品賃貸業"]
[null,null,null,null,null,"世田谷区",null,null,null,null,null,null,null,null,null,null,null,null,null,null,"Ｌ","学術研究，専門・技術サービス業","Ｌ  学術研究，専門・技術サービス業"]
[null,null,null,null,null,"渋谷区",null,null,null,null,null,null,null,null,null,null,null,null,null,null,"Ｍ","宿泊業，飲食サービス業","Ｍ  宿泊業，飲食サービス業"]
[null,null,null,null,null,"中野区",null,null,null,null,null,null,null,null,null,null,null,null,null,null,"Ｎ","生活関連サービス業，娯楽業","Ｎ  生活関連サービス業，娯楽業"]
[null,null,null,null,null,"杉並区",null,null,null,null,null,null,null,null,null,null,null,null,null,null,"Ｏ","教育，学習支援業","Ｏ  教育，学習支援業"]
[null,null,null,null,null,"豊島区",null,null,null,null,null,null,null,null,null,null,null,null,null,null,"Ｐ","医療，福祉","Ｐ  医療，福祉"]
[null,null,null,null,null,"北区",null,null,null,null,null,null,null,null,null,null,null,null,null,null,"Ｑ","複合サービス事業","Ｑ  複合サービス事業"]
[null,null,null,null,null,"荒川区",null,null,null,null,null,null,null,null,null,null,null,null,null,null,"Ｒ","サービス業（他に分類されないもの）","Ｒ  サービス業（他に分類されないもの）"]
[null,null,null,null,null,"板橋区"]
[null,null,null,null,null,"練馬区"]
[null,null,null,null,null,"足立区"]
[null,null,null,null,null,"葛飾区"]
[null,null,null,null,null,"江戸川区"]
[null,null,null,null,null,"八王子市"]
[null,null,null,null,null,"立川市"]
[null,null,null,null,null,"武蔵野市"]
[null,null,null,null,null,"三鷹市"]
[null,null,null,null,null,"青梅市"]
[null,null,null,null,null,"府中市"]
[null,null,null,null,null,"昭島市"]
[null,null,null,null,null,"調布市"]
[null,null,null,null,null,"町田市"]
[null,null,null,null,null,"小金井市"]
[null,null,null,null,null,"小平市"]
[null,null,null,null,null,"日野市"]
[null,null,null,null,null,"東村山市"]
[null,null,null,null,null,"国分寺市"]
[null,null,null,null,null,"国立市"]
[null,null,null,null,null,"福生市"]
[null,null,null,null,null,"狛江市"]
[null,null,null,null,null,"東大和市"]
[null,null,null,null,null,"清瀬市"]
[null,null,null,null,null,"東久留米市"]
[null,null,null,null,null,"武蔵村山市"]
[null,null,null,null,null,"多摩市"]
[null,null,null,null,null,"稲城市"]
[null,null,null,null,null,"羽村市"]
[null,null,null,null,null,"あきる野市"]
[null,null,null,null,null,"西東京市"]
[null,null,null,null,null,"西多摩郡 瑞穂町"]
[null,null,null,null,null,"西多摩郡 日の出町"]
[null,null,null,null,null,"西多摩郡 檜原村"]
[null,null,null,null,null,"西多摩郡 奥多摩町"]
[]
[null,null,null,null,null,"大島町"]
[null,null,null,null,null,"利島村"]
[null,null,null,null,null,"新島村"]
[null,null,null,null,null,"神津島村"]
[]
[null,null,null,null,null,"三宅村"]
[null,null,null,null,null,"御蔵島村"]
[]
[null,null,null,null,null,"八丈町"]
[null,null,null,null,null,"青ヶ島村"]
[]
[null,null,null,null,null,"小笠原村"]